bitfinex/quotes_ETHUSD_20241004
["timestamp","ask_amount","ask_price","bid_price","bid_amount"]
[1728059544429,0.7891,2446.3,2445.9,4.08847]
[1728059544956,0.7891,2446.3,2445.9,8.17684]
[1728059545265,0.7891,2446.3,2446.0,4.0883]
[1728059545553,0.7891,2446.3,2446.1,4.08811]
[1728059545855,0.7891,2446.3,2445.9,4.08839]
[1728059546065,0.7891,2446.3,2445.4,0.8069]
[1728059546066,0.7891,2446.3,2445.8,4.08855]
[1728059546263,1.75405781,2446.3,2445.8,4.08855]
[1728059546551,1.75405781,2446.3,2446.0,4.0883]
[1728059547053,1.75405781,2446.3,2445.8,4.08855]
[1728059547367,1.75405781,2446.3,2446.0,8.1765]
[1728059547541,0.7891,2446.3,2446.0,4.0882]
[1728059547728,0.7891,2446.3,2444.9,0.7983]
[1728059547935,8.17682,2446.0,2445.5,4.08913]
[1728059548176,0.7612,2445.7,2445.3,4.08935]
[1728059548488,4.089,2445.6,2445.1,4.08968]
[1728059548626,4.089,2445.6,2444.4,20.1317]
[1728059548627,4.08931,2445.4,2445.0,4.08996]
[1728059548825,4.08925,2445.5,2445.0,4.0899]
[1728059549060,4.08932,2445.4,2445.0,4.0899]
[1728059549222,0.8271,2445.3,2445.0,4.0899]
[1728059549423,0.8271,2445.3,2444.8,4.09017]
[1728059549662,0.8271,2445.3,2444.9,4.09003]
[1728059549963,4.08849,2445.9,2445.5,4.08904]
[1728059550119,0.7696,2446.0,2445.7,4.08871]
[1728059550320,0.7696,2446.0,2445.9,4.08847]
[1728059550720,0.7696,2446.0,2445.7,4.08866]
[1728059550921,0.7696,2446.0,2445.5,4.08912]
[1728059551169,0.7696,2446.0,2445.9,4.08847]
[1728059551374,0.8271,2446.3,2446.2,4.08797]
[1728059551666,0.13,2446.5,2446.1,8.17613]
[1728059551891,0.13,2446.5,2446.1,4.088]
[1728059552183,0.13,2446.5,2445.9,4.08842]
[1728059552184,0.629041,2446.5,2445.9,4.08834]
[1728059552345,0.629041,2446.5,2446.1,4.08811]
[1728059552534,0.13,2446.5,2446.1,4.08811]
[1728059552738,0.13,2446.5,2446.1,4.08804]
[1728059553333,0.13,2446.5,2446.1,4.08802]
[1728059553540,0.13,2446.5,2446.1,8.17606]
[1728059553776,0.13,2446.5,2446.1,4.08802]
[1728059553980,0.13,2446.5,2446.1,8.17603]
[1728059554131,0.13,2446.5,2446.1,4.08801]
[1728059554566,0.13,2446.5,2445.9,4.08834]
[1728059554567,4.08774,2446.4,2445.9,4.08834]
[1728059554767,4.08814,2446.1,2445.4,0.7659]
[1728059555089,0.8177,2446.3,2445.9,4.08847]
[1728059555385,1.729991,2446.3,2445.9,8.17676]
[1728059555583,1.729991,2446.3,2445.9,4.08837]
[1728059555995,1.729991,2446.3,2445.7,4.08871]
[1728059556284,1.729991,2446.3,2446.0,4.08821]
[1728059556468,0.8177,2446.3,2446.0,4.08821]
[1728059556643,4.90553,2446.3,2445.8,4.08854]
[1728059556857,4.08815,2446.1,2445.7,4.08871]
[1728059557072,4.90564,2446.3,2445.6,4.08884]
[1728059557291,0.8177,2446.3,2445.8,4.08852]
[1728059557471,0.8177,2446.3,2446.1,4.08813]
[1728059557674,0.8177,2446.3,2446.0,4.08829]
[1728059557873,0.8177,2446.3,2446.0,8.1765]
[1728059558093,0.8177,2446.3,2446.1,4.08805]
[1728059558301,0.8177,2446.3,2446.0,4.08821]
[1728059558513,1.32122,2446.3,2446.0,4.08821]
[1728059558694,1.32122,2446.3,2445.8,4.08854]
[1728059558996,0.8177,2446.3,2446.0,4.08829]
[1728059559201,0.8177,2446.3,2445.9,4.08845]
[1728059559560,0.8177,2446.3,2446.0,4.08829]
[1728059560662,0.8177,2446.3,2445.9,4.08845]
[1728059560984,0.8177,2446.3,2446.0,4.08826]
[1728059561191,0.8177,2446.3,2445.5,4.08908]
[1728059561192,5.817941,2446.3,2445.2,0.7659]
[1728059561388,4.08799,2446.2,2445.8,4.08852]
[1728059561562,4.90553,2446.3,2445.2,0.7659]
[1728059561759,0.8177,2446.3,2445.5,4.08909]
[1728059561985,4.08804,2446.2,2445.7,4.08872]
[1728059562186,0.490574,2446.1,2445.7,4.08864]
[1728059562997,0.490574,2446.1,2445.6,4.0889]
[1728059562998,0.7775,2446.0,2445.6,4.0889]
[1728059563194,0.7775,2446.0,2445.7,4.08869]
[1728059563396,0.7775,2446.0,2445.8,4.08855]
[1728059563564,0.7775,2446.0,2445.7,4.08869]
[1728059563990,0.7775,2446.0,2445.8,4.08862]
[1728059564405,0.7775,2446.4,2445.7,0.7884]
[1728059564608,1.08235736,2446.4,2445.7,0.7884]
[1728059564824,1.08235736,2446.4,2446.0,4.08817]
[1728059564825,5.17006736,2446.4,2446.0,4.08817]
[1728059565127,5.17006736,2446.4,2445.7,4.08871]
[1728059565128,0.8094,2446.1,2445.7,4.08871]
[1728059565332,4.08852,2445.9,2445.3,4.08937]
[1728059565627,4.08852,2445.9,2444.4,0.83046768]
[1728059565628,4.08923,2445.5,2445.0,4.08997]
[1728059565830,4.8984,2445.6,2445.1,4.0898]
[1728059566134,0.8094,2445.6,2445.4,4.08923]
[1728059566282,0.8094,2445.6,2445.4,8.17846]
[1728059566620,0.8094,2445.6,2445.2,4.08956]
[1728059566808,0.489821,2445.5,2445.1,4.08979]
[1728059567014,0.489821,2445.5,2445.2,4.08954]
[1728059567194,4.08951,2445.3,2444.9,4.09004]
[1728059567536,0.7684,2445.0,2444.6,4.09064]
[1728059567677,0.7684,2445.0,2444.5,4.09071]
[1728059567882,0.48583,2444.9,2444.2,4.0912]
[1728059568113,0.7684,2445.3,2444.8,4.09031]
[1728059568283,0.7684,2445.7,2445.5,4.08903]
[1728059568912,0.7684,2445.7,2445.6,4.08897]
[1728059569127,0.7684,2445.7,2445.3,4.08938]
[1728059569283,0.7684,2445.7,2445.5,4.08913]
[1728059569639,8.1762,2446.2,2445.3,4.08945]
[1728059569640,2.14193581,2446.2,2445.3,4.08945]
[1728059569799,0.7684,2446.0,2445.8,4.08855]
[1728059569985,0.7684,2446.0,2445.7,4.0888]
[1728059570186,0.7684,2446.0,2445.5,4.08912]
[1728059570407,0.7684,2446.0,2445.6,4.0889]
[1728059570603,4.85679,2446.0,2445.5,4.08905]
[1728059570822,4.08899,2445.6,2445.1,4.08972]
[1728059570994,4.08899,2445.6,2445.0,4.08995]
[1728059571193,4.85758,2445.5,2445.0,4.0899]
[1728059571393,0.7684,2445.5,2445.1,4.08969]
[1728059571624,4.85754,2445.5,2445.1,4.08969]
[1728059571839,5.752192,2445.5,2445.1,4.08969]
[1728059572195,1.663052,2445.5,2444.9,4.09001]
[1728059572420,4.85762,2445.5,2445.1,4.0898]
[1728059573140,0.7684,2445.5,2445.1,4.0898]
[1728059573322,0.7684,2445.5,2445.1,8.17949]
[1728059573507,0.7684,2445.5,2445.1,4.08969]
[1728059573709,0.7684,2445.5,2444.5,0.8226]
[1728059573914,0.7684,2445.5,2445.1,4.08972]
[1728059574238,1.663032,2445.5,2445.1,4.08972]
[1728059574412,1.663032,2445.5,2445.1,8.17945]
[1728059574607,1.663032,2445.5,2445.1,4.08972]
[1728059574814,1.663032,2445.5,2445.1,8.17944]
[1728059575011,4.08932,2445.4,2444.9,8.18011]
[1728059575221,0.5752352,2445.3,2444.9,8.18011]
[1728059575445,0.5752352,2445.3,2444.9,4.09004]
[1728059575600,0.5752352,2445.3,2445.0,4.08985]
[1728059576217,5.752172,2445.5,2445.1,4.08979]
[1728059576902,9.841422,2445.5,2445.0,4.08985]
[1728059577240,9.841422,2445.5,2444.8,4.0902]
[1728059577241,4.08956,2445.3,2444.8,4.0902]
[1728059577411,0.7907,2445.0,2444.6,4.09057]
[1728059577609,0.7907,2445.0,2444.0,0.7672]
[1728059577817,0.7907,2445.0,2444.9,4.09014]
[1728059578536,0.7907,2445.0,2444.8,4.0902]
[1728059578840,0.7907,2445.0,2444.6,4.09051]
[1728059579042,4.09022,2444.9,2444.4,4.09086]
[1728059579228,0.897097,2444.8,2444.4,4.09086]
[1728059579413,4.987407,2444.8,2444.4,4.09086]
[1728059579619,4.987407,2444.8,2444.2,4.09119]
[1728059579620,0.7575,2444.7,2444.2,4.09119]
[1728059579943,4.09065,2444.6,2444.2,4.09119]
[1728059580243,4.09065,2444.6,2443.9,1.24]
[1728059580244,4.09083,2444.5,2443.9,1.24]
[1728059580451,4.84857,2444.4,2443.9,5.33177]
[1728059580751,4.84857,2444.4,2443.9,1.24]
[1728059580955,4.09132,2444.2,2443.9,1.24]
[1728059581101,4.84857,2444.4,2443.9,1.24]
[1728059581309,0.5742468,2444.3,2444.0,4.09162]
[1728059581505,0.7575,2444.4,2444.3,4.09115]
[1728059581709,0.7575,2444.9,2444.4,4.09084]
[1728059581919,0.7575,2444.9,2444.5,4.09068]
[1728059582347,0.7575,2444.9,2444.3,4.09099]
[1728059582556,4.84765,2444.9,2444.4,4.09089]
[1728059582731,0.7575,2444.9,2444.3,4.09108]
[1728059582932,0.7575,2444.9,2444.0,0.7716]
[1728059582933,0.7575,2444.9,2444.6,4.09064]
[1728059583162,0.7575,2444.9,2444.5,4.0907]
[1728059583923,4.09051,2444.7,2444.1,4.09133]
[1728059584263,4.64271807,2445.2,2444.4,4.09096]
[1728059584264,1.166551,2444.6,2444.4,4.09096]
[1728059584470,0.7575,2444.6,2444.4,4.09098]
[1728059584826,0.7575,2444.6,2444.5,4.09081]
[1728059585063,0.7575,2444.6,2444.4,4.09084]
[1728059585267,4.08859,2445.9,2444.4,4.09084]
[1728059585268,0.75,2444.9,2444.8,4.09031]
[1728059585626,0.75,2444.9,2444.2,0.7972]
[1728059585825,0.75,2444.9,2444.7,4.09043]
[1728059586026,0.75,2444.9,2444.7,8.18082]
[1728059586226,0.75,2444.9,2444.7,4.09039]
[1728059587162,0.75,2444.9,2444.5,4.09068]
[1728059587363,0.75,2444.9,2444.6,4.09061]
[1728059588026,0.75,2444.9,2444.6,8.18118]
[1728059588229,4.09058,2444.7,2444.2,4.09122]
[1728059588567,4.0909,2444.5,2444.0,4.0915]
[1728059588771,4.0909,2444.5,2443.6,4.09224]
[1728059588772,4.09084,2444.5,2444.1,4.09147]
[1728059589132,8.18176,2444.5,2443.8,4.09186]
[1728059589370,4.09084,2444.5,2444.0,4.09157]
[1728059589676,0.55483973,2444.4,2444.1,4.09147]
[1728059589852,1.45755732,2444.6,2443.4,4.84529]
[1728059590059,4.64271807,2444.3,2442.3,19.72]
[1728059590367,4.88145,2444.0,2443.3,4.09279]
[1728059590998,4.88145,2444.0,2443.3,8.18553]
[1728059591157,4.88145,2444.0,2443.3,4.09274]
[1728059591494,4.88145,2444.0,2443.5,4.09241]
[1728059591707,4.88145,2444.0,2443.3,4.09281]
[1728059591994,4.88145,2444.0,2443.2,4.09284]
[1728059592305,4.88145,2444.0,2443.3,4.0928]
[1728059592599,4.88145,2444.0,2443.3,4.09273]
[1728059592802,4.88145,2444.0,2442.9,0.8015]
[1728059593006,0.7898,2444.0,2443.6,4.09222]
[1728059593305,4.8726,2444.2,2443.8,4.09189]
[1728059593598,0.7812,2444.2,2443.8,4.09189]
[1728059593895,0.7812,2444.2,2443.8,4.09188]
[1728059594422,4.09108,2444.4,2443.9,5.33181]
[1728059594557,4.09123,2444.3,2443.9,1.24]
[1728059594758,4.0914,2444.2,2443.9,1.24]
[1728059594963,4.09159,2444.1,2443.9,1.24]
[1728059595357,4.09122,2444.3,2443.9,1.24]
[1728059595557,0.7843,2444.5,2443.9,1.24]
[1728059595781,0.7843,2444.5,2443.9,5.33169]
[1728059595985,4.09117,2444.3,2443.9,1.24]
[1728059596233,4.86965,2444.0,2443.9,1.24]
[1728059597719,0.7738,2443.2,2442.8,4.09353]
[1728059598809,4.86681,2443.2,2442.7,4.09381]
[1728059599501,0.7738,2443.0,2442.3,4.09446]
[1728059599702,0.7738,2442.8,2442.2,4.09455]
[1728059599936,0.7738,2442.8,2442.4,4.09425]
[1728059600306,0.7738,2442.8,2442.3,4.09444]
[1728059600750,0.7738,2442.8,2442.4,4.09433]
[1728059600952,0.7738,2442.8,2442.1,8.18954]
[1728059601260,0.7734,2443.1,2442.8,8.18715]
[1728059601566,4.96643881,2443.3,2443.1,4.09306]
[1728059601567,1.64693881,2443.3,2443.1,4.09306]
[1728059601713,0.7734,2443.7,2443.4,4.09265]
[1728059602060,4.86563,2443.7,2443.2,4.09284]
[1728059602240,4.09232,2443.6,2443.2,4.09284]
[1728059602417,0.895782,2443.6,2443.2,4.09284]
[1728059602613,4.988182,2443.6,2443.0,4.09322]
[1728059602816,4.09261,2443.5,2443.0,4.09322]
[1728059603159,0.895782,2443.6,2442.9,4.09337]
[1728059603359,4.988112,2443.6,2443.1,8.18606]
[1728059603657,0.7734,2443.7,2443.4,4.09257]
[1728059604013,0.7734,2443.7,2443.3,4.09273]
[1728059604214,0.7734,2443.7,2443.4,4.09258]
[1728059604414,0.7757,2444.1,2444.0,4.09165]
[1728059604645,0.7757,2444.4,2444.1,4.0914]
[1728059605156,4.8667,2444.4,2444.0,4.09154]
[1728059605316,5.762459,2444.4,2444.0,4.09154]
[1728059605794,5.762459,2444.4,2443.8,4.09188]
[1728059606098,4.09133,2444.2,2443.8,4.09188]
[1728059606246,0.8244,2444.0,2443.4,4.09264]
[1728059606442,0.8244,2444.0,2443.7,4.09205]
[1728059606648,5.407623,2444.0,2443.4,4.09258]
[1728059606873,5.407623,2444.0,2443.1,4.87424]
[1728059606874,4.09199,2443.8,2443.1,4.87424]
[1728059607189,4.91673,2443.6,2443.2,4.09297]
[1728059607393,4.91673,2443.6,2442.8,0.7812]
[1728059607594,0.8244,2443.6,2443.3,4.0927]
[1728059607887,0.55583522,2443.5,2443.2,4.09299]
[1728059608073,0.55583522,2443.5,2442.8,4.87482]
[1728059608272,0.8244,2443.6,2443.5,4.09249]
[1728059608474,0.8244,2443.6,2443.1,4.09302]
[1728059608475,0.64180217,2443.7,2443.6,4.09232]
[1728059608679,0.64180217,2443.7,2443.4,4.09259]
[1728059608847,0.64180217,2443.7,2443.2,4.09286]
[1728059608848,0.64180217,2443.7,2443.3,4.09274]
[1728059609259,0.64180217,2443.7,2443.2,4.09286]
[1728059609511,4.56570622,2443.6,2443.2,4.09286]
[1728059609663,0.47338622,2443.6,2443.2,4.09286]
[1728059610014,4.56578622,2443.6,2443.2,4.09286]
[1728059610310,0.47338622,2443.6,2443.3,4.09281]
[1728059610506,0.47338622,2443.6,2443.4,4.09264]
[1728059610906,0.64180217,2443.7,2443.5,4.09249]
[1728059611064,0.64180217,2443.7,2443.6,4.09232]
[1728059612020,4.73403217,2443.7,2443.1,4.87737]
[1728059612169,4.0924,2443.6,2443.2,4.09299]
[1728059612367,0.88264322,2443.5,2443.2,4.09299]
[1728059612616,4.73403217,2443.7,2443.2,4.09299]
[1728059612768,4.73403217,2443.7,2443.1,4.09314]
[1728059612769,0.8292,2443.6,2443.1,4.09314]
[1728059612974,4.92153,2443.6,2443.1,4.09314]
[1728059613224,0.8292,2443.6,2443.0,4.0932]
[1728059613408,0.8292,2443.6,2443.1,4.09308]
[1728059613709,0.55632722,2443.5,2443.2,4.09297]
[1728059614117,0.55632722,2443.5,2443.1,4.09308]
[1728059614321,0.55632722,2443.5,2443.2,4.09291]
[1728059614809,0.8292,2443.6,2443.4,4.09249]
[1728059615012,4.09256,2443.5,2443.0,4.09322]
[1728059615181,4.09273,2443.4,2442.9,4.09339]
[1728059615534,4.09256,2443.5,2443.0,4.09321]
[1728059615673,0.492176,2443.4,2443.0,4.09321]
[1728059616071,0.8292,2443.6,2443.4,4.09261]
[1728059616277,0.8292,2443.6,2443.3,4.0928]
[1728059616579,0.8292,2443.6,2443.3,4.09279]
[1728059617814,0.64180217,2443.7,2443.3,4.09275]
[1728059618111,0.64180217,2443.7,2443.5,4.09237]
[1728059618809,1.11517139,2443.7,2443.4,4.09262]
[1728059618969,0.64180217,2443.7,2443.5,4.0924]
[1728059619174,0.64180217,2443.7,2443.3,4.09273]
[1728059619175,0.7694,2443.6,2443.3,4.09274]
[1728059619571,0.7694,2443.6,2443.4,4.0925]
[1728059619999,0.7694,2443.6,2443.5,4.09249]
[1728059620310,0.64180217,2443.7,2443.6,4.09232]
[1728059620791,0.64180217,2443.7,2443.5,4.09249]
[1728059620948,0.64180217,2443.7,2442.9,5.43571807]
[1728059621111,4.73396217,2443.7,2443.2,4.09285]
[1728059621299,4.56572622,2443.6,2443.2,4.09285]
[1728059621504,4.09249,2443.5,2443.1,4.09315]
[1728059621722,4.56574622,2443.6,2443.2,4.09297]
[1728059621896,4.90966,2443.4,2442.9,4.0934]
[1728059622102,0.47339622,2443.6,2443.0,4.64271807]
[1728059622318,0.64180217,2443.7,2443.5,4.0924]
[1728059622501,0.64180217,2443.7,2443.4,4.09264]
[1728059622932,0.64180217,2443.7,2443.5,4.09246]
[1728059623119,0.64180217,2443.7,2443.2,4.09285]
[1728059623318,4.09232,2443.6,2443.2,4.09286]
[1728059623521,0.96431122,2443.6,2443.2,4.09286]
[1728059623923,0.96431122,2443.6,2443.0,4.09317]
[1728059624128,0.96431122,2443.6,2443.2,4.09297]
[1728059624312,0.96431122,2443.6,2443.0,4.0932]
[1728059624727,5.05664122,2443.6,2443.2,4.09299]
[1728059624940,0.8223,2443.4,2443.0,8.18643]
[1728059625150,0.8223,2443.4,2442.7,0.8316]
[1728059625151,0.8223,2443.4,2443.2,4.09288]
[1728059625325,0.8223,2443.4,2443.1,4.09299]
[1728059625956,4.91505,2443.4,2443.0,4.09331]
[1728059626918,4.91505,2443.4,2442.9,8.18675]
[1728059627267,0.54848943,2443.3,2443.1,4.09313]
[1728059627429,0.8223,2443.4,2443.2,4.09297]
[1728059627633,0.8223,2443.4,2442.7,5.47431807]
[1728059627935,0.8223,2443.4,2443.2,4.09287]
[1728059628962,4.73405217,2443.7,2442.8,4.09364]
[1728059628963,0.7583,2443.6,2442.8,4.09364]
[1728059629167,0.7583,2443.6,2443.5,4.09249]
[1728059629314,0.64180217,2443.7,2443.6,4.09232]
[1728059630664,0.64180217,2443.7,2443.5,8.18486]
[1728059631175,0.64180217,2443.7,2443.6,4.09232]
[1728059632563,0.64180217,2443.7,2443.5,4.09237]
[1728059632776,1.40990217,2443.7,2443.5,8.18477]
[1728059632922,1.40990217,2443.7,2443.5,4.09237]
[1728059633752,1.40990217,2443.7,2443.6,4.09232]
[1728059633956,0.64180217,2443.7,2443.6,4.09232]
[1728059638475,0.64180217,2443.7,2443.5,4.09237]
[1728059638824,1.11516539,2443.7,2443.5,8.18476]
[1728059639031,0.64180217,2443.7,2443.5,4.09237]
[1728059639266,0.64180217,2443.7,2443.6,4.09232]
[1728059639932,0.64180217,2443.7,2443.5,4.09247]
[1728059640625,0.64180217,2443.7,2443.5,8.18489]
[1728059641029,0.64180217,2443.7,2443.6,4.09232]
[1728059642493,0.64180217,2443.7,2443.3,4.09268]
[1728059642694,1.11517139,2443.7,2443.4,4.09257]
[1728059643312,5.20739139,2443.7,2443.2,4.86059]
[1728059643512,4.09244,2443.6,2443.1,4.09302]
[1728059643740,8.18486,2443.6,2443.1,4.09302]
[1728059644063,1.90857139,2443.7,2443.2,3.77140186]
[1728059644229,1.90857139,2443.7,2442.9,20.5409]
[1728059644230,0.64180217,2443.7,2443.6,7.86372186]
[1728059644857,0.64180217,2443.7,2443.6,4.09232]
[1728059647622,0.64180217,2443.7,2443.6,7.86372186]
[1728059649716,0.64180217,2443.7,2443.4,3.77140186]
[1728059649915,0.64180217,2443.7,2443.6,4.09232]
[1728059650156,1.42800217,2443.7,2443.5,4.09235]
[1728059650313,1.97999339,2443.7,2443.4,4.09262]
[1728059650518,1.97999339,2443.7,2443.0,3.77140186]
[1728059650741,1.42800217,2443.7,2443.5,4.09239]
[1728059651130,1.42800217,2443.7,2443.4,4.0926]
[1728059651461,5.52024217,2443.7,2443.3,4.09277]
[1728059651668,1.42800217,2443.7,2443.3,4.09273]
[1728059651827,2.19475492,2443.7,2443.3,4.09273]
[1728059652183,2.19475492,2443.7,2443.4,4.09254]
[1728059652333,1.42800217,2443.7,2443.5,4.09242]
[1728059652519,1.42800217,2443.7,2443.2,7.86424186]
[1728059652872,5.52021217,2443.7,2443.2,8.18573]
[1728059653075,5.52021217,2443.7,2443.2,4.09284]
[1728059653364,4.64446122,2443.6,2443.1,4.09313]
[1728059653535,4.09249,2443.5,2443.1,4.09313]
[1728059654157,0.7822,2443.4,2443.1,4.09313]
[1728059654363,0.7822,2443.4,2443.1,4.09306]
[1728059654717,0.7822,2443.4,2443.0,7.86465186]
[1728059654919,1.13046677,2443.4,2443.0,4.09325]
[1728059655146,5.22311677,2443.4,2442.8,11.95843186]
[1728059655346,5.22313677,2443.4,2443.0,4.09332]
[1728059656081,2.14844645,2443.5,2443.3,4.09282]
[1728059656358,4.02763791,2443.7,2443.6,4.09232]
[1728059656359,0.64180217,2443.7,2443.6,4.09232]
[1728059656720,0.64180217,2443.7,2443.6,8.68502186]
[1728059657147,0.64180217,2443.7,2443.6,12.23502186]
[1728059657666,0.64180217,2443.7,2443.6,13.10106892]
[1728059657819,0.64180217,2443.7,2443.6,7.91362]
[1728059658019,0.64180217,2443.7,2443.6,4.91362]
[1728059658958,0.64180217,2443.7,2443.6,4.09232]
[1728059659502,0.64180217,2443.7,2443.5,4.09249]
[1728059659740,0.64180217,2443.7,2443.5,4.09237]
[1728059660011,0.64180217,2443.7,2443.6,4.09232]
[1728059660167,0.64180217,2443.7,2443.5,4.09237]
[1728059660693,0.64180217,2443.7,2443.5,8.18477]
[1728059660864,0.64180217,2443.7,2443.5,4.09237]
[1728059661066,0.64180217,2443.7,2443.0,3.0]
[1728059661270,0.8249,2443.5,2443.1,4.09306]
[1728059661581,4.9175,2443.5,2442.9,4.09341]
[1728059661774,4.09283,2443.3,2442.9,4.09341]
[1728059661982,2.79024862,2443.7,2443.4,4.09265]
[1728059662187,0.64180217,2443.7,2443.6,4.09232]
[1728059662589,0.64180217,2443.7,2443.6,4.9108]
[1728059664227,0.64180217,2443.7,2443.6,4.09232]
[1728059667486,0.64180217,2443.7,2443.6,8.41552]
[1728059669094,0.64180217,2443.7,2443.6,7.86552]
[1728059669297,0.64180217,2443.7,2443.6,8.41552]
[1728059671736,0.8142,2444.8,2443.7,3.55]
[1728059672027,4.90453,2444.8,2444.4,4.0909]
[1728059672385,0.64148468,2444.6,2444.4,4.0909]
[1728059672932,4.73215468,2444.6,2444.2,4.09118]
[1728059673083,4.73215468,2444.6,2444.0,4.09151]
[1728059673084,4.09105,2444.4,2444.0,4.09151]
[1728059673488,4.09105,2444.4,2443.6,4.86543]
[1728059673489,0.8142,2444.2,2443.6,4.09217]
[1728059673644,0.8142,2444.2,2443.7,4.09204]
[1728059673645,4.90558,2444.2,2443.7,4.09204]
[1728059673797,4.90558,2444.2,2442.9,28.5994222]
[1728059673798,0.753,2443.8,2443.4,4.0925]
[1728059674006,4.84507,2443.8,2443.4,4.0925]
[1728059674242,4.84507,2443.8,2442.8,0.4104]
[1728059674243,4.09234,2443.6,2443.2,4.0929]
[1728059674449,0.753,2443.4,2443.1,4.09313]
[1728059674944,0.753,2443.4,2442.7,0.7949]
[1728059675102,0.753,2443.4,2443.2,4.09285]
[1728059675635,0.753,2443.4,2443.2,8.18576]
[1728059676144,0.753,2443.4,2443.3,4.09282]
[1728059676309,0.753,2443.4,2443.2,4.09285]
[1728059676510,0.753,2443.4,2443.3,4.09282]
[1728059676826,0.7641,2443.7,2443.3,4.09282]
[1728059677025,0.7641,2443.7,2443.4,4.09258]
[1728059677276,0.7641,2443.7,2443.4,4.09264]
[1728059677605,0.7641,2443.7,2443.5,4.09247]
[1728059677835,0.7641,2443.7,2443.4,4.09257]
[1728059678148,0.7641,2443.7,2443.4,4.09253]
[1728059678307,0.7641,2443.7,2443.5,4.09239]
[1728059678508,0.7641,2443.7,2443.6,4.09232]
[1728059678732,4.09153,2444.1,2443.7,4.09212]
[1728059678942,1.4084506,2444.1,2443.7,4.09212]
[1728059679260,5.4999406,2444.1,2443.7,4.09212]
[1728059679844,1.4084506,2444.1,2443.7,4.09212]
[1728059680013,0.7568,2444.2,2443.9,8.18345]
[1728059680219,0.7912,2444.5,2443.8,4.09187]
[1728059680424,0.7912,2444.5,2444.3,4.09099]
[1728059682253,0.64148468,2444.6,2444.2,4.09117]
[1728059682488,0.64148468,2444.6,2444.4,8.18183]
[1728059682644,0.64148468,2444.6,2444.5,4.09081]
[1728059682964,0.64148468,2444.6,2444.4,8.18175]
[1728059683166,0.64148468,2444.6,2444.5,4.09081]
[1728059683386,0.64148468,2444.6,2444.4,4.09098]
[1728059685241,1.19103415,2444.6,2444.4,4.09098]
[1728059685682,1.19103415,2444.6,2444.4,8.18188]
[1728059685893,0.64148468,2444.6,2444.4,4.0909]
[1728059686586,0.64148468,2444.6,2444.4,4.09089]
[1728059686943,0.64148468,2444.6,2444.1,0.7656]
[1728059687143,0.64148468,2444.6,2444.3,4.09098]
[1728059687371,0.64148468,2444.6,2444.4,4.09088]
[1728059687688,1.19103615,2444.6,2444.4,8.18178]
[1728059688106,1.19103615,2444.6,2444.5,4.09081]
[1728059688391,0.64148468,2444.6,2444.2,4.09116]
[1728059688609,0.64148468,2444.6,2444.4,4.09096]
[1728059688917,0.64148468,2444.6,2444.2,8.18239]
[1728059689061,0.64148468,2444.6,2444.1,4.09141]
[1728059689062,4.73215468,2444.6,2444.1,4.09141]
[1728059689258,1.25981547,2444.5,2444.3,4.09107]
[1728059689489,0.7866,2444.5,2444.3,4.09107]
[1728059689904,0.7866,2444.5,2444.2,4.09128]
[1728059690112,0.7866,2444.5,2443.9,3.0]
[1728059690314,0.7866,2444.5,2444.1,4.09139]
[1728059690464,4.09102,2444.4,2444.0,4.09163]
[1728059690807,0.64148468,2444.6,2443.6,4.09217]
[1728059690808,4.92016,2444.1,2443.6,4.09217]
[1728059691006,4.92037,2444.0,2443.4,4.09255]
[1728059691312,4.92037,2444.0,2443.3,4.09277]
[1728059691313,4.09208,2443.8,2443.3,4.09282]
[1728059691492,4.92035,2444.0,2443.3,4.09273]
[1728059691667,4.09201,2443.8,2443.3,4.09273]
[1728059691862,4.09201,2443.8,2443.0,4.90047]
[1728059691863,2.14106662,2444.5,2444.2,4.09131]
[1728059692101,1.47008468,2444.6,2443.9,0.8072]
[1728059692334,5.56080468,2444.6,2444.1,4.09135]
[1728059692464,5.56080468,2444.6,2444.2,4.09131]
[1728059692813,4.64691047,2444.5,2444.0,8.18312]
[1728059692979,4.64691047,2444.5,2444.0,4.09155]
[1728059693177,4.64691047,2444.5,2444.1,4.0914]
[1728059693178,4.64692047,2444.5,2444.1,4.0914]
[1728059694107,4.84845,2444.3,2443.9,4.09173]
[1728059694267,4.84845,2444.3,2443.8,4.09192]
[1728059694609,0.89395,2444.2,2443.9,4.09181]
[1728059694970,0.89395,2444.2,2443.8,4.09188]
[1728059695167,0.7573,2444.3,2444.2,4.09131]
[1728059695371,0.7573,2444.5,2444.4,4.09098]
[1728059695794,0.64148468,2444.6,2444.5,4.09081]
[1728059696261,0.64148468,2444.6,2444.3,4.09112]
[1728059696777,1.19689015,2444.6,2444.3,4.09112]
[1728059699277,0.64148468,2444.6,2444.3,4.09103]
[1728059699582,0.7986,2444.5,2444.1,4.09136]
[1728059699896,4.88942,2444.5,2444.1,4.09147]
[1728059700076,4.88942,2444.5,2444.2,4.0912]
[1728059700077,0.7986,2444.5,2444.2,4.0912]
[1728059700249,0.64148468,2444.6,2444.4,4.09098]
[1728059700450,0.64148468,2444.6,2444.5,4.09081]
[1728059700964,0.64148468,2444.6,2444.4,4.09087]
[1728059701495,0.64148468,2444.6,2444.4,8.18177]
[1728059701707,0.64148468,2444.6,2444.2,4.09118]
[1728059701847,1.41758468,2444.6,2444.2,4.09118]
[1728059702052,1.41758468,2444.6,2444.1,4.09139]
[1728059702280,6.05904115,2444.6,2444.1,4.09146]
[1728059702692,6.05904115,2444.6,2444.1,4.09138]
[1728059703060,1.96839115,2444.6,2444.2,4.09123]
[1728059703664,1.96839115,2444.6,2444.3,4.09113]
[1728059703871,0.60588712,2444.5,2444.3,4.09113]